lending/lending_fUSD_20241212
["ID","MTS","AMOUNT","RATE_DAILY","PERIOD"]
[345069446,1733975440516,-500.0,0.00010958,2]
[345069447,1733975440526,-500.0,0.00010958,2]
[345069448,1733975440535,-500.0,0.00010958,2]
[345069449,1733975440547,-500.0,0.00010958,2]
[345069450,1733975440557,-500.0,0.00010958,2]
[345069451,1733975440567,-500.0,0.00010958,2]
[345069452,1733975440576,-500.0,0.00010958,2]
[345069453,1733975440585,-500.0,0.00010958,2]
[345069454,1733975440595,-500.0,0.00010958,2]
[345069455,1733975440604,-501.47666778,0.00010958,2]
[345069456,1733975440614,-500.0,0.00010958,2]
[345069457,1733975440624,-990.06,0.00010958,2]
[345069458,1733975440634,-502.50607202,0.00010958,2]
[345069459,1733975440643,-500.0,0.00010958,2]
[345069460,1733975440652,-502.87907364,0.00010958,2]
[345069461,1733975440662,-500.78721613,0.00010958,2]
[345069462,1733975440671,-500.0,0.00010958,2]
[345069463,1733975440681,-500.0,0.00010958,2]
[345069464,1733975440690,-501.19500204,0.00010958,2]
[345069465,1733975440700,-501.20000182,0.00010958,2]
[345069466,1733975440709,-510.70431238,0.00010958,2]
[345069467,1733975440718,-503.16832055,0.00010958,2]
[345069468,1733975440727,-509.53039078,0.00010958,2]
[345069469,1733975440736,-501.10190129,0.00010958,2]
[345069470,1733975440746,-509.79905641,0.00010958,2]
[345069471,1733975440755,-500.0,0.00010958,2]
[345069472,1733975440764,-510.26940827,0.00010958,2]
[345069473,1733975440774,-500.0,0.00010958,2]
[345069474,1733975440783,-503.17796055,0.00010958,2]
[345069475,1733975440795,-528.0818,0.00010958,2]
[345069476,1733975440804,-511.15817046,0.00010958,2]
[345069477,1733975440813,-503.40350647,0.00010958,2]
[345069478,1733975440823,-500.0,0.00010958,2]
[345069479,1733975440832,-500.0,0.00010958,2]
[345069480,1733975440842,-500.0,0.00010958,2]
[345069481,1733975440851,-500.0,0.00010958,2]
[345069482,1733975440861,-500.0,0.00010958,2]
[345069483,1733975440871,-607.06020976,0.00010958,2]
[345069484,1733975440880,-500.0,0.00010958,2]
[345069485,1733975440890,-500.0,0.00010958,2]
[345069486,1733975440899,-1030.75,0.00010958,2]
[345069487,1733975440908,-500.0,0.00010958,2]
[345069488,1733975440918,-588.17953798,0.00010958,2]
[345069489,1733975440927,-502.67551077,0.00010958,2]
[345069490,1733975440937,-508.00703904,0.00010958,2]
[345069491,1733975440946,-502.31691244,0.00010958,2]
[345069492,1733975440955,-500.0,0.00010958,2]
[345069493,1733975440965,-503.20677664,0.00010958,2]
[345069494,1733975440974,-506.7197411,0.00010958,2]
[345069495,1733975440984,-503.58563795,0.00010958,2]
[345069496,1733975440994,-500.0,0.00010958,2]
[345069497,1733975441003,-510.2821189,0.00010958,2]
[345069498,1733975441012,-501.62958002,0.00010958,2]
[345069499,1733975441021,-512.80873316,0.00010958,2]
[345069500,1733975441031,-521.74821397,0.00010958,2]
[345069501,1733975441042,-505.47730732,0.00010958,2]
[345069502,1733975441051,-501.92389562,0.00010958,2]
[345069503,1733975441060,-500.0,0.00010958,2]
[345069504,1733975441069,-500.0,0.00010958,2]
[345069505,1733975441079,-500.0,0.00010958,2]
[345069506,1733975441089,-500.0,0.00010958,2]
[345069507,1733975441099,-508.23497214,0.00010958,2]
[345069508,1733975441108,-500.69728618,0.00010958,2]
[345069509,1733975441118,-500.0,0.00010958,2]
[345069510,1733975441127,-500.64497591,0.00010958,2]
[345069511,1733975441136,-507.86262794,0.00010958,2]
[345069512,1733975441145,-619.24161251,0.00010958,2]
[345069513,1733975441154,-500.0,0.00010958,2]
[345069514,1733975441162,-504.6981757,0.00010958,2]
[345069515,1733975441171,-500.0,0.00010958,2]
[345069516,1733975441181,-503.46401028,0.00010958,2]
[345069517,1733975441190,-507.38796481,0.00010958,2]
[345069518,1733975441199,-498.90076614,0.00010958,2]
[345069519,1733975441209,-513.00645502,0.00010958,2]
[345069520,1733975441218,-500.0,0.00010958,2]
[345069521,1733975441228,-500.0,0.00010958,2]
[345069522,1733975441238,-500.0,0.00010958,2]
[345069523,1733975441248,-500.0,0.00010958,2]
[345069524,1733975441258,-500.0,0.00010958,2]
[345069525,1733975441268,-500.0,0.00010958,2]
[345069526,1733975441278,-500.0,0.00010958,2]
[345069527,1733975441287,-500.0,0.00010958,2]
[345069528,1733975441305,-1000.0,0.00010958,2]
[345069529,1733975441314,-512.27577851,0.00010958,2]
[345069530,1733975441324,-500.0,0.00010958,2]
[345069531,1733975441337,-528.42976926,0.00010958,2]
[345069532,1733975441347,-500.0,0.00010958,2]
[345069533,1733975441357,-500.0,0.00010958,2]
[345069534,1733975441367,-156.52394765,0.00010958,2]
[345069535,1733975441377,-500.0,0.00010958,2]
[345069536,1733975441386,-500.0,0.00010958,2]
[345069537,1733975441396,-515.27,0.00010958,2]
[345069538,1733975441405,-500.0,0.00010958,2]
[345069539,1733975441414,-547.49095705,0.00010958,2]
[345069540,1733975441424,-500.0,0.00010958,2]
[345069541,1733975441434,-500.0,0.00010958,2]
[345069542,1733975441444,-500.0,0.00010958,2]
[345069543,1733975441454,-500.0,0.00010958,2]
[345069544,1733975441463,-512.53492801,0.00010958,2]
[345069545,1733975441472,-712.31,0.00010958,2]
[345069546,1733975441481,-500.0,0.00010958,2]
[345069547,1733975441490,-375.78881903,0.00010958,2]
[345069548,1733975441500,-500.0,0.00010958,2]
[345069549,1733975441509,-500.0,0.00010958,2]
[345069550,1733975441519,-500.0,0.00010958,2]
[345069551,1733975441528,-500.0,0.00010958,2]
[345069552,1733975441538,-500.0,0.00010958,2]
[345069553,1733975441554,-500.0,0.00010958,2]
[345069554,1733975441563,-500.0,0.00010958,2]
[345069555,1733975441573,-500.0,0.00010958,2]
[345069556,1733975441583,-500.0,0.00010958,2]
[345069557,1733975441593,-500.0,0.00010958,2]
[345069558,1733975441603,-500.0,0.00010958,2]
[345069559,1733975441613,-500.0,0.00010958,2]
[345069560,1733975441622,-500.0,0.00010958,2]
[345069561,1733975441631,-500.0,0.00010958,2]
[345069562,1733975441641,-500.0,0.00010958,2]
[345069563,1733975441650,-500.0,0.00010958,2]
[345069564,1733975441659,-500.0,0.00010958,2]
[345069565,1733975441668,-507.96372042,0.00010958,2]
[345069566,1733975441677,-500.0,0.00010958,2]
[345069567,1733975441687,-500.0,0.00010958,2]
[345069568,1733975441696,-500.0,0.00010958,2]
[345069569,1733975441705,-500.0,0.00010958,2]
[345069570,1733975441715,-500.0,0.00010958,2]
[345069571,1733975441724,-174.18101648,0.00010958,2]
[345069572,1733975441733,-505.20390814,0.00010958,2]
[345069573,1733975441743,-500.0,0.00010958,2]
[345069574,1733975441752,-500.52525341,0.00010958,2]
[345069575,1733975441761,-500.0,0.00010958,2]
[345069576,1733975441771,-500.0,0.00010958,2]
[345069577,1733975441780,-500.0,0.00010958,2]
[345069578,1733975441793,-500.0,0.00010958,2]
[345069579,1733975441803,-500.0,0.00010958,2]
[345069580,1733975441813,-508.40680388,0.00010958,2]
[345069581,1733975441822,-500.0,0.00010958,2]
[345069582,1733975441832,-500.0,0.00010958,2]
[345069583,1733975441842,-500.0,0.00010958,2]
[345069584,1733975441852,-500.0,0.00010958,2]
[345069585,1733975441862,-500.0,0.00010958,2]
[345069586,1733975441871,-500.0,0.00010958,2]
[345069587,1733975441881,-500.0,0.00010958,2]
[345069588,1733975441891,-500.0,0.00010958,2]
[345069589,1733975441900,-500.0,0.00010958,2]
[345069590,1733975441909,-500.0,0.00010958,2]
[345069591,1733975441919,-500.0,0.00010958,2]
[345069592,1733975441929,-500.0,0.00010958,2]
[345069593,1733975441938,-500.0,0.00010958,2]
[345069594,1733975441948,-500.0,0.00010958,2]
[345069595,1733975441958,-500.0,0.00010958,2]
[345069596,1733975441967,-500.0,0.00010958,2]
[345069597,1733975441976,-508.44710178,0.00010958,2]
[345069598,1733975441986,-500.0,0.00010958,2]
[345069599,1733975441995,-511.69170247,0.00010958,2]
[345069600,1733975442004,-530.31153337,0.00010958,2]
[345069601,1733975442014,-500.0,0.00010958,2]
[345069602,1733975442023,-505.52435052,0.00010958,2]
[345069603,1733975442032,-500.0,0.00010958,2]
[345069604,1733975442046,-500.0,0.00010958,2]
[345069605,1733975442056,-500.0,0.00010958,2]
[345069606,1733975442065,-500.0,0.00010958,2]
[345069607,1733975442075,-500.0,0.00010958,2]
[345069608,1733975442084,-500.0,0.00010958,2]
[345069609,1733975442094,-500.0,0.00010958,2]
[345069610,1733975442104,-394.02,0.00010958,2]
[345069611,1733975442113,-500.0,0.00010958,2]
[345069612,1733975442123,-500.0,0.00010958,2]
[345069613,1733975442132,-531.892987,0.00010958,2]
[345069614,1733975442142,-500.0,0.00010958,2]
[345069615,1733975442151,-500.0,0.00010958,2]
[345069616,1733975442161,-318.56807833,0.00010958,2]
[345069617,1733975442170,-15441.01,0.00010959,2]
[345069618,1733975442180,-685.33483945,0.00010968,2]
[345069619,1733975442190,-8975.64998431,0.00010969,2]
[345069620,1733975442199,-63758.66964166,0.00010969,2]
[345069621,1733975442229,-14509.52243228,0.00010969,2]
[345069622,1733975442239,-8975.64998431,0.00010973,2]
[345069623,1733975442248,-78268.19207394,0.00010974,2]
[345069624,1733975442257,-8975.64998431,0.00010975,2]
[345069625,1733975442266,-165.63595324,0.00010975,2]
[345069626,1733975442275,-1015.71,0.00010976,2]
[345069627,1733975442285,-8975.64998431,0.00010977,2]
[345069628,1733975442299,-685.33483945,0.00010978,2]
[345069629,1733975442309,-78268.19207394,0.00010979,2]
[345069630,1733975442319,-8975.64998431,0.00010982,2]
[345069631,1733975442328,-78268.19207394,0.00010983,2]
[345069632,1733975442341,-78268.19207394,0.00010984,2]
[345069633,1733975442350,-2363.51491,0.0001099,2]
[345069634,1733975442552,-685.33483945,0.00010991,2]
[345069635,1733975442563,-685.33483945,0.00010992,2]
[345069636,1733975442573,-78268.19207394,0.00010993,2]
[345069637,1733975442582,-685.33483945,0.00010995,2]
[345069638,1733975442592,-616.6837,0.00010997,2]
[345069639,1733975442601,-6129.2039,0.00010997,2]
[345069640,1733975442610,-1950.065,0.00010997,2]
[345069641,1733975442620,-8975.64998431,0.00010998,2]
[345069642,1733975442630,-685.33483945,0.00010999,2]
[345069643,1733975442639,-2449.2033,0.00010999,2]
[345069644,1733975442648,-4501.8193,0.00011,2]
[345069645,1733975442657,-340.0,0.00011,4]
[345069646,1733975442667,-339.85,0.00011,5]
[345069647,1733975442676,-255.0,0.00011008,2]
[345069648,1733975442685,-180.05,0.00011028,2]
[345069649,1733975442695,-1902.415,0.00011039,2]
[345069650,1733975442704,-198.387,0.00011039,2]
[345069651,1733975442713,-25778.0,0.00011068,2]
[345069652,1733975442722,-12828.0,0.00011068,2]
[345069653,1733975442732,-500.89593824,0.00011073,2]
[345069654,1733975442741,-501.96043294,0.00011073,2]
[345069655,1733975442750,-500.0,0.00011073,2]
[345069656,1733975442759,-256.0,0.0001109,2]
[345069657,1733975442769,-1947.91981993,0.00011096,2]
[345069658,1733975442778,-500.0,0.00011096,2]
[345069659,1733975442787,-500.0,0.00011096,2]
[345069660,1733975442800,-500.0,0.00011096,2]
[345069661,1733975442810,-500.0,0.00011096,2]
[345069662,1733975442819,-500.0,0.00011096,2]
[345069663,1733975442829,-500.0,0.00011096,2]
[345069664,1733975442838,-500.0,0.00011096,2]
[345069665,1733975442848,-500.0,0.00011096,2]
[345069666,1733975442857,-500.0,0.00011096,2]
[345069667,1733975442867,-500.0,0.00011096,2]
[345069668,1733975442876,-580.95400137,0.00011096,2]
[345069669,1733975442886,-500.0,0.00011096,2]
[345069670,1733975442896,-500.0,0.00011096,2]
[345069671,1733975442905,-500.0,0.00011096,2]
[345069672,1733975442914,-500.0,0.00011096,2]
[345069673,1733975442923,-500.0,0.00011096,2]
[345069674,1733975442932,-566.59,0.00011096,2]
[345069675,1733975442941,-500.0,0.00011096,2]
[345069676,1733975442951,-500.0,0.00011096,2]
[345069677,1733975442960,-500.0,0.00011096,2]
[345069678,1733975442969,-523.7727576,0.00011096,2]
[345069679,1733975442979,-500.0,0.00011096,2]
[345069680,1733975442988,-204.6,0.00011096,2]
[345069681,1733975442997,-500.0,0.00011096,2]
[345069682,1733975443006,-500.0,0.00011096,2]
[345069683,1733975443016,-500.0,0.00011096,2]
[345069684,1733975443025,-500.0,0.00011096,2]
[345069685,1733975443035,-500.0,0.00011096,2]
[345069686,1733975443047,-500.0,0.00011096,2]
[345069687,1733975443056,-248.36,0.00011096,2]
[345069688,1733975443066,-500.0,0.00011096,2]
[345069689,1733975443075,-500.0,0.00011096,2]
[345069690,1733975443084,-7595.59254037,0.00011096,2]
[345069692,1733975443094,-500.0,0.00011096,2]
[345069693,1733975443103,-500.0,0.00011096,2]
[345069694,1733975443112,-500.0,0.00011096,2]
[345069695,1733975443122,-500.0,0.00011096,2]
[345069696,1733975443131,-500.0,0.00011096,2]
[345069697,1733975443140,-500.0,0.00011096,2]
[345069698,1733975443150,-107493.23955108,0.00011097,2]
[345069699,1733975443159,-500.0,0.00011097,2]
[345069700,1733975443168,-500.0,0.00011097,2]
[345069701,1733975443178,-400.121212,0.00011097,3]
[345069702,1733975443187,-400.121212,0.00011097,3]
[345069703,1733975443196,-400.121212,0.00011097,3]
[345069704,1733975443205,-400.121212,0.00011097,3]
[345069705,1733975443215,-400.121212,0.00011097,3]
[345069706,1733975443224,-400.121212,0.00011097,3]
[345069707,1733975443234,-400.121212,0.00011097,3]
[345069708,1733975443243,-400.121212,0.00011097,3]
[345069709,1733975443253,-400.121212,0.00011097,3]
[345069710,1733975443263,-400.121212,0.00011097,3]
[345069711,1733975443272,-400.121212,0.00011097,2]
[345069712,1733975443282,-400.121212,0.00011097,2]
[345069713,1733975443293,-400.121212,0.00011097,2]
[345069714,1733975443303,-400.121212,0.00011097,2]
[345069715,1733975443312,-400.121212,0.00011097,2]
[345069716,1733975443323,-400.121212,0.00011097,2]
[345069717,1733975443333,-400.121212,0.00011097,2]
[345069718,1733975443343,-400.121212,0.00011097,2]
[345069719,1733975443353,-400.121212,0.00011097,2]
[345069720,1733975443363,-400.121212,0.00011097,2]
[345069721,1733975443372,-500.0,0.00011097,2]
[345069723,1733975443382,-500.0,0.00011097,2]
[345069725,1733975443392,-502.34528217,0.00011097,2]
[345069729,1733975443401,-510.26040484,0.00011097,2]
[345069735,1733975443411,-698.11,0.00011097,2]
[345069738,1733975443420,-601.8906238,0.00011097,2]
[345069741,1733975443429,-500.0,0.00011097,2]
[345069744,1733975443439,-500.0,0.00011098,2]
[345069746,1733975443448,-500.0,0.00011098,2]
[345069748,1733975443458,-508.7857006,0.00011098,2]
[345069750,1733975443467,-500.0,0.00011098,2]
[345069752,1733975443477,-500.0,0.00011098,2]
[345069753,1733975443486,-500.0,0.00011098,2]
[345069754,1733975443495,-500.0,0.00011098,2]
[345069755,1733975443504,-500.0,0.00011098,2]
[345069756,1733975443513,-500.0,0.00011098,2]
[345069757,1733975443524,-500.0,0.00011098,2]
[345069758,1733975443534,-502.52913251,0.00011098,2]
[345069759,1733975443546,-500.0,0.00011098,2]
[345069760,1733975443556,-500.0,0.00011098,2]
[345069761,1733975443565,-500.0,0.00011098,2]
[345069762,1733975443574,-500.0,0.00011098,2]
[345069763,1733975443583,-500.0,0.00011098,2]
[345069764,1733975443593,-500.0,0.00011098,2]
[345069765,1733975443602,-500.0,0.00011098,2]
[345069766,1733975443612,-500.0,0.00011098,2]
[345069767,1733975443621,-500.0,0.00011098,2]
[345069768,1733975443632,-500.0,0.00011098,2]
[345069769,1733975443643,-324.40890977,0.00011098,2]
[345069770,1733975443653,-500.0,0.00011098,2]
[345069771,1733975443663,-500.0,0.00011098,2]
[345069772,1733975443672,-990.06,0.00011098,2]
[345069773,1733975443681,-990.06,0.00011098,2]
[345069774,1733975443691,-990.06,0.00011098,2]
[345069775,1733975443700,-500.0,0.00011098,2]
[345069776,1733975443709,-500.0,0.00011098,2]
[345069777,1733975443718,-500.0,0.00011098,2]
[345069778,1733975443727,-500.0,0.00011098,2]
[345069779,1733975443737,-500.0,0.00011098,2]
[345069780,1733975443747,-500.0,0.00011098,2]
[345069781,1733975443756,-500.0,0.00011098,2]
[345069782,1733975443765,-500.0,0.00011098,2]
[345069783,1733975443775,-500.0,0.00011098,2]
[345069784,1733975443784,-500.0,0.00011098,2]
[345069785,1733975443794,-500.0,0.00011098,2]
[345069786,1733975443804,-500.0,0.00011098,2]
[345069787,1733975443813,-500.0,0.00011098,2]
[345069788,1733975443822,-500.0,0.00011098,2]
[345069789,1733975443832,-500.0,0.00011098,2]
[345069790,1733975443841,-500.0,0.00011098,2]
[345069791,1733975443851,-500.0,0.00011098,2]
[345069792,1733975443861,-426.46805619,0.00011098,2]
[345069793,1733975443870,-500.0,0.00011098,2]
[345069794,1733975443879,-500.0,0.00011098,2]
[345069795,1733975443888,-297.61871624,0.00011098,2]
[345069796,1733975443898,-501.61115136,0.00011098,2]
[345069797,1733975443907,-1030.75,0.00011098,2]
[345069798,1733975443916,-1030.75,0.00011098,2]
[345069799,1733975443926,-1030.75,0.00011098,2]
[345069800,1733975443935,-648.21,0.00011098,2]
[345069801,1733975443945,-511.14189492,0.00011098,2]
[345069802,1733975443954,-500.0,0.00011098,2]
[345069803,1733975443965,-500.0,0.00011098,2]
[345069804,1733975443975,-500.0,0.00011098,2]
[345069805,1733975443984,-616.39703468,0.00011098,2]
[345069806,1733975443994,-500.0,0.00011098,2]
[345069807,1733975444004,-500.0,0.00011098,2]
[345069808,1733975444013,-500.0,0.00011098,2]
[345069809,1733975444023,-500.0,0.00011098,2]
[345069810,1733975444032,-500.0,0.00011098,2]
[345069811,1733975444045,-500.0,0.00011098,2]
[345069812,1733975444055,-435.80739899,0.00011098,2]
[345069813,1733975444064,-500.0,0.00011098,2]
[345069814,1733975444074,-500.0,0.00011098,2]
[345069815,1733975444083,-500.0,0.00011098,2]
[345069816,1733975444092,-500.0,0.00011098,2]
[345069817,1733975444102,-500.0,0.00011098,2]
[345069818,1733975444111,-500.0,0.00011098,2]
[345069819,1733975444120,-500.0,0.00011098,2]
[345069820,1733975444130,-156.83397185,0.00011098,2]
[345069821,1733975444139,-338.61848374,0.00011098,2]
[345069822,1733975444148,-500.0,0.00011098,2]
[345069823,1733975444158,-500.0,0.00011098,2]
[345069824,1733975444167,-500.0,0.00011098,2]
[345069825,1733975444176,-500.0,0.00011098,2]
[345069826,1733975444186,-500.0,0.00011098,2]
[345069827,1733975444195,-500.0,0.00011098,2]
[345069828,1733975444205,-166.44,0.00011098,2]
[345069829,1733975444215,-1000.0,0.00011098,2]
[345069830,1733975444224,-1000.0,0.00011098,2]
[345069831,1733975444233,-1000.0,0.00011098,2]
[345069832,1733975444243,-500.0,0.00011098,2]
[345069833,1733975444252,-500.0,0.00011098,2]
[345069834,1733975444262,-368.0,0.00011098,2]
[345069835,1733975444271,-500.0,0.00011098,2]
[345069836,1733975444280,-500.0,0.00011098,2]
[345069837,1733975444289,-500.0,0.00011098,2]
[345069838,1733975444302,-500.0,0.00011098,2]
[345069839,1733975444311,-545.48,0.00011098,2]
[345069840,1733975444321,-500.0,0.00011098,2]
[345069842,1733975444330,-500.0,0.00011098,2]
[345069843,1733975444343,-500.0,0.00011098,2]
[345069844,1733975444352,-500.0,0.00011098,2]
[345069845,1733975444361,-299.78,0.00011098,2]
[345069846,1733975444371,-500.0,0.00011098,2]
[345069847,1733975444380,-500.0,0.00011098,2]
[345069848,1733975444389,-500.0,0.00011098,2]
[345069849,1733975444399,-500.0,0.00011098,2]
[345069850,1733975444408,-500.0,0.00011098,2]
[345069851,1733975444417,-500.0,0.00011098,2]
[345069852,1733975444427,-259.12,0.00011098,2]
[345069853,1733975444436,-606.53565455,0.00011098,2]
[345069854,1733975444447,-712.31,0.00011098,2]
[345069855,1733975444456,-712.31,0.00011098,2]
[345069856,1733975444465,-712.31,0.00011098,2]
[345069857,1733975444474,-500.0,0.00011098,2]
[345069858,1733975444483,-500.0,0.00011098,2]
[345069859,1733975444493,-584.13477164,0.00011098,2]
[345069860,1733975444502,-896.88,0.00011098,2]
[345069861,1733975444512,-896.88,0.00011098,2]
[345069862,1733975444521,-500.0,0.00011098,2]
[345069863,1733975444530,-500.0,0.00011098,2]
[345069864,1733975444540,-500.0,0.00011098,2]
[345069865,1733975444551,-500.0,0.00011098,2]
[345069866,1733975444560,-500.0,0.00011098,2]
[345069867,1733975444569,-544.42803546,0.00011098,2]
[345069868,1733975444579,-500.0,0.00011098,2]
[345069869,1733975444588,-500.0,0.00011098,2]
[345069870,1733975444598,-500.0,0.00011098,2]
[345069871,1733975444608,-500.0,0.00011098,2]
[345069872,1733975444618,-500.0,0.00011098,2]
[345069873,1733975444627,-500.0,0.00011098,2]
[345069874,1733975444636,-500.0,0.00011098,2]
[345069875,1733975444646,-500.0,0.00011098,2]
[345069876,1733975444655,-500.0,0.00011098,2]
[345069877,1733975444665,-500.0,0.00011098,2]
[345069878,1733975444675,-500.0,0.00011098,2]
[345069879,1733975444684,-500.0,0.00011098,2]
[345069880,1733975444693,-500.0,0.00011098,2]
[345069881,1733975444703,-500.0,0.00011098,2]
[345069882,1733975444712,-500.0,0.00011098,2]
[345069883,1733975444721,-500.0,0.00011098,2]
[345069884,1733975444731,-500.0,0.00011098,2]
[345069885,1733975444740,-500.0,0.00011098,2]
[345069886,1733975444749,-500.0,0.00011098,2]
[345069887,1733975444759,-548.89,0.00011098,2]
[345069888,1733975444768,-500.0,0.00011098,2]
[345069889,1733975444777,-500.0,0.00011098,2]
[345069890,1733975444786,-527.67935753,0.00011098,2]
[345069891,1733975444798,-500.0,0.00011098,2]
[345069892,1733975444807,-500.0,0.00011098,2]
[345069893,1733975444817,-500.0,0.00011098,2]
[345069894,1733975444826,-500.0,0.00011098,2]
[345069895,1733975444835,-500.0,0.00011098,2]
[345069896,1733975444845,-500.0,0.00011098,2]
[345069897,1733975444854,-500.0,0.00011098,2]
[345069898,1733975444863,-500.0,0.00011098,2]
[345069899,1733975444873,-500.0,0.00011098,2]
[345069900,1733975444883,-500.0,0.00011098,2]
[345069901,1733975444894,-500.0,0.00011098,2]
[345069902,1733975444903,-500.0,0.00011098,2]
[345069903,1733975444912,-500.0,0.00011098,2]
[345069904,1733975444921,-500.0,0.00011098,2]
[345069905,1733975444930,-500.0,0.00011098,2]
[345069906,1733975444940,-500.0,0.00011098,2]
[345069907,1733975444954,-500.0,0.00011098,2]
[345069908,1733975444965,-500.0,0.00011098,2]
[345069909,1733975444975,-333.19559724,0.00011098,2]
[345069910,1733975444984,-540.37039295,0.00011098,2]
[345069911,1733975444999,-500.0,0.00011098,2]
[345069912,1733975445013,-500.0,0.00011098,2]
[345069913,1733975445022,-500.0,0.00011098,2]
[345069914,1733975445031,-500.0,0.00011098,2]
[345069915,1733975445040,-500.0,0.00011098,2]
[345069916,1733975445050,-500.0,0.00011098,2]
[345069917,1733975445060,-369.1672143,0.00011098,2]
[345069918,1733975445069,-500.34769308,0.00011098,2]
[345069919,1733975445079,-500.0,0.00011098,2]
[345069920,1733975445088,-307.44460188,0.00011098,2]
[345069921,1733975445097,-500.0,0.00011098,2]
[345069922,1733975445108,-500.0,0.00011098,2]
[345069923,1733975445117,-500.0,0.00011098,2]
[345069924,1733975445127,-500.0,0.00011098,2]
[345069925,1733975445136,-500.0,0.00011098,2]
[345069926,1733975445146,-500.0,0.00011098,2]
[345069927,1733975445155,-500.0,0.00011098,2]
[345069928,1733975445164,-500.0,0.00011098,2]
[345069929,1733975445174,-500.0,0.00011098,2]
[345069930,1733975445183,-500.0,0.00011098,2]
[345069931,1733975445193,-641.56628387,0.00011098,2]
[345069932,1733975445202,-500.0,0.00011098,2]
[345069933,1733975445213,-500.0,0.00011098,2]
[345069934,1733975445222,-500.0,0.00011098,2]
[345069935,1733975445231,-500.0,0.00011098,2]
[345069936,1733975445241,-500.0,0.00011098,2]
[345069937,1733975445252,-500.0,0.00011098,2]
[345069938,1733975445261,-500.0,0.00011098,2]
[345069939,1733975445271,-540.19903229,0.00011098,2]
[345069940,1733975445281,-500.0,0.00011098,2]
[345069941,1733975445292,-591.52387072,0.00011098,2]
[345069942,1733975445302,-500.0,0.00011098,2]
[345069943,1733975445312,-500.0,0.00011098,2]
[345069944,1733975445322,-500.0,0.00011098,2]
[345069945,1733975445334,-344.44559544,0.00011098,2]
[345069946,1733975445345,-515.12325339,0.00011098,2]
[345069947,1733975445355,-500.0,0.00011098,2]
[345069948,1733975445364,-532.739071,0.00011098,2]
[345069949,1733975445375,-500.65,0.00011098,2]
[345069950,1733975445384,-500.0,0.00011098,2]
[345069951,1733975445393,-500.0,0.00011098,2]
[345069952,1733975445402,-500.0,0.00011098,2]
[345069953,1733975445413,-500.0,0.00011098,2]
[345069954,1733975445422,-501.95163638,0.00011098,2]
[345069955,1733975445431,-500.0,0.00011098,2]
[345069956,1733975445440,-500.0,0.00011098,2]
[345069957,1733975445449,-500.0,0.00011098,2]
[345069958,1733975445458,-500.0,0.00011098,2]
[345069959,1733975445468,-213.85652302,0.00011098,2]
[345069960,1733975445477,-500.0,0.00011098,2]
[345069961,1733975445487,-500.0,0.00011098,2]
[345069962,1733975445495,-500.0,0.00011098,2]
[345069963,1733975445505,-500.0,0.00011098,2]
[345069964,1733975445515,-505.07876632,0.00011098,2]
[345069965,1733975445524,-500.0,0.00011098,2]
[345069966,1733975445533,-514.26782138,0.00011098,2]
[345069967,1733975445544,-500.0,0.00011098,2]